fUST/lending_fUST_20250809
["ID","MTS","AMOUNT","RATE_DAILY","PERIOD"]
[378067688,1754716259321,-740.11,0.00024657,2]
[378067690,1754716259331,-1560.26,0.00024657,2]
[378067692,1754716259340,-460.0,0.00024657,2]
[378067694,1754716259350,-1863.28,0.00024657,2]
[378067696,1754716259359,-560.11,0.00024657,2]
[378067698,1754716259369,-619.47,0.00024657,2]
[378067700,1754716259378,-3886.89,0.00024657,2]
[378067702,1754716259387,-972.03,0.00024657,2]
[378067704,1754716259397,-460.0,0.00024657,2]
[378067706,1754716259407,-460.0,0.00024657,2]
[378067708,1754716259416,-316.60336903,0.00024657,2]
[378067710,1754716259426,-461.6,0.00024657,2]
[378067712,1754716259436,-500.0,0.00024658,2]
[378067714,1754716259444,-151.0,0.00024658,7]
[378067716,1754716259454,-151.0,0.00024658,7]
[378067718,1754716259463,-151.0,0.00024658,7]
[378067720,1754716259472,-151.0,0.00024658,7]
[378067722,1754716259482,-151.0,0.00024658,7]
[378067724,1754716259491,-151.0,0.00024658,7]
[378067726,1754716259500,-280.0,0.00024658,2]
[378067728,1754716259509,-151.0,0.00024658,2]
[378067730,1754716259518,-443.0,0.00024658,2]
[378067732,1754716259528,-550.0,0.00024664,2]
[378067734,1754716259537,-2500.0,0.00024664,2]
[378067736,1754716259546,-2500.0,0.00024664,2]
[378067738,1754716259555,-500.0,0.0002468,2]
[378067740,1754716259568,-500.0,0.0002468,2]
[378067742,1754716259578,-460.0,0.00024683,2]
[378067744,1754716259588,-553.86947639,0.0002469,10]
[378067746,1754716259597,-151.788045,0.0002469,10]
[378067748,1754716259606,-151.0,0.0002469,7]
[378067750,1754716259616,-151.0,0.0002469,7]
[378067752,1754716259625,-151.0,0.0002469,7]
[378067754,1754716259635,-151.0,0.0002469,7]
[378067756,1754716259644,-211.383814,0.0002469,7]
[378067758,1754716259654,-211.383814,0.0002469,7]
[378067760,1754716259663,-168.0,0.000247,2]
[378067762,1754716259673,-235.90307636,0.00024716,2]
[378067764,1754716259682,-168.0,0.00024727,2]
[378067766,1754716259693,-168.0,0.00024745,2]
[378067768,1754716259702,-600.0,0.00024773,2]
[378067770,1754716259711,-150.0,0.00024773,2]
[378067772,1754716259721,-500.0,0.00024773,2]
[378067774,1754716259730,-8012.15414636,0.00024774,2]
[378067793,1754716259894,-4279.96729346,0.00024774,2]
[378067795,1754716259903,-151.0,0.00024774,7]
[378067797,1754716259913,-152.207969,0.00024774,7]
[378067799,1754716259922,-151.0,0.00024774,7]
[378067801,1754716259931,-160.12247853,0.00024795,14]
[378067803,1754716259941,-242.510232,0.000248,7]
[378067805,1754716259951,-223.993383,0.000248,7]
[378067807,1754716259960,-223.993383,0.000248,7]
[378067809,1754716259969,-151.0,0.000248,7]
[378067811,1754716259979,-151.0,0.000248,7]
[378067813,1754716259988,-152.807478,0.000248,7]
[378067815,1754716259998,-151.0,0.000248,7]
[378067817,1754716260007,-948.97252,0.000248,7]
[378067819,1754716260017,-948.97252,0.000248,7]
[378067821,1754716260026,-151.0,0.000248,7]
[378067823,1754716260035,-4746.67650766,0.000248,2]
[378067825,1754716260045,-151.0,0.000248,7]
[378067827,1754716260054,-323.985552,0.000248,7]
[378067829,1754716260066,-323.985552,0.000248,7]
[378067831,1754716260076,-169.46101101,0.00024817,2]
[378067833,1754716260086,-251.0,0.00024822,2]
[378067835,1754716260095,-251.0,0.00024846,2]
[378067837,1754716260105,-2516.5912962,0.0002487,7]
[378067839,1754716260113,-500.0,0.00024873,2]
[378067841,1754716260127,-500.0,0.00024873,2]
[378067843,1754716260136,-500.0,0.00024873,2]
[378067845,1754716260147,-500.0,0.00024873,2]
[378067848,1754716260157,-500.0,0.00024873,2]
[378067849,1754716260167,-33661.0423956,0.0002489,7]
[378067852,1754716260177,-151.0,0.0002489,7]
[378067854,1754716260186,-151.0,0.0002489,7]
[378067856,1754716260196,-151.0,0.0002489,7]
[378067857,1754716260206,-151.0,0.0002489,7]
[378067866,1754716260284,-151.0,0.0002489,7]
[378067869,1754716260295,-319.058462,0.0002489,7]
[378067870,1754716260304,-319.058462,0.0002489,7]
[378067873,1754716260317,-151.0,0.0002489,7]
[378067875,1754716260326,-151.0,0.0002489,7]
[378067877,1754716260336,-151.0,0.0002489,7]
[378067878,1754716260346,-211.383814,0.0002489,7]
[378067880,1754716260355,-211.383814,0.0002489,7]
[378067882,1754716260364,-151.0,0.000249,7]
[378067884,1754716260374,-151.0,0.000249,7]
[378067886,1754716260384,-151.0,0.000249,7]
[378067888,1754716260393,-151.0,0.000249,7]
[378067890,1754716260403,-151.0,0.000249,7]
[378067892,1754716260412,-206.113152,0.000249,7]
[378067895,1754716260422,-151.0,0.000249,7]
[378067897,1754716260431,-319.058462,0.000249,7]
[378067899,1754716260441,-319.058462,0.000249,7]
[378067901,1754716260451,-151.0,0.000249,7]
[378067903,1754716260461,-223.993383,0.000249,7]
[378067904,1754716260471,-223.993383,0.000249,7]
[378067906,1754716260481,-151.0,0.000249,7]
[378067908,1754716260491,-154.228275,0.000249,7]
[378067911,1754716260502,-948.97252,0.000249,7]
[378067913,1754716260511,-948.97252,0.000249,7]
[378067915,1754716260521,-160.0,0.000249,7]
[378067917,1754716260530,-842.95011917,0.000249,7]
[378067919,1754716260540,-151.0,0.000249,7]
[378067920,1754716260549,-216.61183532,0.000249,7]
[378067922,1754716260558,-312.16666667,0.000249,7]
[378067924,1754716260573,-151.0,0.000249,7]
[378067927,1754716260583,-151.0,0.000249,7]
[378067929,1754716260592,-151.0,0.000249,7]
[378067930,1754716260602,-542283.09841165,0.000249,2]
[378067974,1754716261029,-3143.68,0.00021917,2]
[378067976,1754716261045,-461.95876402,0.00021917,2]
[378067979,1754716261060,-460.0,0.00021917,2]
[378067981,1754716261077,-463.369172,0.00021917,2]
[378067984,1754716261093,-460.0,0.00021917,2]
[378067987,1754716261110,-460.0,0.00021917,2]
[378067989,1754716261132,-460.0,0.00021917,2]
[378067991,1754716261157,-250.0,0.00021926,2]
[378067994,1754716261172,-151.0,0.00021926,2]
[378067996,1754716261187,-250.0,0.00021926,2]
[378067999,1754716261202,-151.0,0.00021926,2]
[378068001,1754716261216,-250.0,0.00021926,2]
[378068004,1754716261231,-151.0,0.00021926,2]
[378068006,1754716261246,-250.0,0.00021926,2]
[378068009,1754716261261,-151.0,0.00021926,2]
[378068011,1754716261272,-250.0,0.00021926,2]
[378068013,1754716261282,-250.0,0.00021926,2]
[378068015,1754716261292,-250.0,0.00021926,2]
[378068017,1754716261301,-460.0,0.00022191,2]
[378068019,1754716261314,-460.0,0.00022191,2]
[378068021,1754716261324,-460.0,0.00022465,2]
[378068023,1754716261333,-460.0,0.00022465,2]
[378068025,1754716261343,-460.0,0.00022739,2]
[378068027,1754716261352,-460.0,0.00022739,2]
[378068029,1754716261362,-460.0,0.00023013,2]
[378068031,1754716261371,-460.0,0.00023013,2]
[378068033,1754716261381,-460.0,0.00023287,2]
[378068035,1754716261391,-460.0,0.00023561,2]
[378068037,1754716261400,-460.0,0.00023835,2]
[378068039,1754716261410,-460.0,0.00024109,2]
[378068041,1754716261420,-3143.68,0.00024657,4]
[378068043,1754716261429,-107447.49604835,0.000249,2]
[378068045,1754716261439,-248.036506,0.000249,7]
[378068047,1754716261448,-211.383814,0.000249,7]
[378068049,1754716261458,-461.55179734,0.000249,7]
[378068051,1754716261467,-211.383814,0.000249,7]
[378068053,1754716261476,-323.985552,0.000249,7]
[378068055,1754716261486,-215.40758176,0.000249,7]
[378068076,1754716261495,-323.985552,0.000249,7]
[378068079,1754716261706,-1837.27,0.0002493,2]
[378068081,1754716261717,-796.65,0.0002493,2]
[378068083,1754716261726,-2104.15,0.0002493,2]
[378068085,1754716261736,-3687.5,0.00024931,2]
[378068087,1754716261745,-210.58,0.00024931,2]
[378068089,1754716261754,-460.0,0.00024931,2]
[378068091,1754716261764,-460.0,0.00024931,2]
[378068093,1754716261773,-579.98,0.00024931,2]
[378068095,1754716261782,-460.0,0.00024931,2]
[378068097,1754716261791,-472.0,0.00024931,2]
[378068099,1754716261802,-562.43,0.00024931,2]
[378068101,1754716261813,-460.0,0.00024931,2]
[378068103,1754716261822,-460.0,0.00024931,2]
[378068105,1754716261835,-460.0,0.00024931,2]
[378068107,1754716261845,-460.0,0.00024931,2]
[378068109,1754716261854,-585.92,0.00024931,2]
[378068111,1754716261863,-460.0,0.00024931,2]
[378068113,1754716261873,-460.0,0.00024931,2]
[378068115,1754716261883,-737.74,0.00024931,2]
[378068117,1754716261892,-1186.16,0.00024931,2]
[378068119,1754716261902,-575.50982013,0.00024931,2]
[378068121,1754716261911,-460.0,0.00024931,2]
[378068123,1754716261921,-844.33,0.00024931,2]
[378068125,1754716261931,-5779.76,0.00024931,2]
[378068127,1754716261940,-219.92921328,0.00024931,2]
[378068129,1754716261950,-460.0,0.00024931,2]
[378068131,1754716261958,-1359.95,0.00024931,2]
[378068133,1754716261967,-677.65,0.00024931,2]
[378068135,1754716261977,-673.74,0.00024931,2]
[378068137,1754716261986,-460.0,0.00024931,2]
[378068139,1754716261995,-1248.09,0.00024931,2]
[378068141,1754716262005,-2614.39,0.00024931,2]
[378068143,1754716262014,-1565.54,0.00024931,2]
[378068145,1754716262024,-805.41,0.00024931,2]
[378068147,1754716262033,-720.99,0.00024931,2]
[378068149,1754716262042,-460.0,0.00024931,2]
[378068151,1754716262051,-2540.53,0.00024931,2]
[378068153,1754716262062,-460.0,0.00024931,2]
[378068155,1754716262071,-2680.87,0.00024931,2]
[378068157,1754716262081,-1055.29,0.00024931,2]
[378068159,1754716262090,-626.96,0.00024931,2]
[378068161,1754716262099,-831.45,0.00024931,2]
[378068163,1754716262108,-531.14,0.00024931,2]
[378068165,1754716262119,-1352.54,0.00024931,2]
[378068167,1754716262130,-460.0,0.00024931,2]
[378068169,1754716262140,-447.62111399,0.00024931,2]
[378068171,1754716262149,-616.96,0.00024931,2]
[378068173,1754716262159,-484.51,0.00024931,2]
[378068175,1754716262169,-460.0,0.00024931,2]
[378068176,1754716262179,-878.7,0.00024931,2]
[378068179,1754716262188,-460.0,0.00024931,2]
[378068180,1754716262199,-588.03,0.00024931,2]
[378068182,1754716262209,-2205.74,0.00024931,2]
[378068185,1754716262219,-460.0,0.00024931,2]
[378068186,1754716262230,-812.53,0.00024931,2]
[378068189,1754716262241,-627.1,0.00024931,2]
[378068190,1754716262251,-502.96,0.00024931,2]
[378068193,1754716262260,-460.0,0.00024931,2]
[378068195,1754716262271,-1473.86,0.00024931,2]
[378068196,1754716262280,-734.31,0.00024931,2]
[378068198,1754716262289,-1466.73,0.00024931,2]
[378068200,1754716262299,-584.11,0.00024931,2]
[378068202,1754716262308,-460.0,0.00024931,2]
[378068204,1754716262319,-460.0,0.00024931,2]
[378068206,1754716262329,-460.0,0.00024931,2]
[378068208,1754716262339,-1086.66,0.00024931,2]
[378068209,1754716262349,-1230.88,0.00024931,2]
[378068210,1754716262360,-460.0,0.00024931,2]
[378068211,1754716262369,-1364.78,0.00024931,2]
[378068212,1754716262379,-460.0,0.00024931,2]
[378068213,1754716262388,-740.11,0.00024931,2]
[378068214,1754716262398,-1560.26,0.00024931,2]
[378068215,1754716262408,-460.0,0.00024931,2]
[378068216,1754716262418,-1863.28,0.00024931,2]
[378068217,1754716262427,-560.11,0.00024931,2]
[378068218,1754716262437,-619.47,0.00024931,2]
[378068219,1754716262447,-3886.89,0.00024931,2]
[378068220,1754716262456,-972.03,0.00024931,2]
[378068221,1754716262466,-460.0,0.00024931,2]
[378068222,1754716262475,-460.0,0.00024931,2]
[378068223,1754716262485,-461.6,0.00024931,2]
[378068224,1754716262494,-222.7520725,0.00024932,2]
[378068225,1754716262503,-443.0,0.00024932,2]
[378068226,1754716262513,-913.00310154,0.00024964,2]
[378068228,1754716262523,-752.9312567,0.00025,2]
[378068229,1754716262533,-49583.09,0.00025,7]
[378068231,1754716262543,-216.61183532,0.00025,7]
[378068233,1754716262552,-312.16666667,0.00025,7]
[378068235,1754716262565,-500.0,0.00025001,2]
[378068237,1754716262574,-500.0,0.00025003,7]
[378068239,1754716262583,-251.0,0.00025041,2]
[378068241,1754716262594,-168.0,0.00025124,2]
[378068242,1754716262603,-5895.4498919,0.00025164,2]
[378068244,1754716262613,-500.0,0.00025164,2]
[378068246,1754716262623,-2480.23566676,0.00025164,2]
[378068248,1754716262632,-150.0,0.00025186,2]
[378068250,1754716262642,-1837.27,0.00025204,2]
[378068252,1754716262651,-796.65,0.00025204,2]
[378068254,1754716262661,-2104.15,0.00025204,2]
[378068256,1754716262670,-3687.5,0.00025205,2]
[378068258,1754716262680,-151.0,0.00025205,7]
[378068260,1754716262689,-4224.87082043,0.00025205,7]
[378068262,1754716262699,-151.0,0.00025205,7]
[378068264,1754716262708,-151.0,0.00025205,7]
[378068266,1754716262717,-151.0,0.00025205,7]
[378068268,1754716262727,-151.0,0.00025205,7]
[378068270,1754716262736,-460.0,0.00025205,2]
[378068272,1754716262746,-206.113152,0.00025205,7]
[378068274,1754716262755,-151.0,0.00025205,7]
[378068276,1754716262765,-352.90347945,0.00025205,2]
[378068277,1754716262774,-579.98,0.00025205,2]
[378068279,1754716262783,-460.0,0.00025205,2]
[378068282,1754716262793,-319.058462,0.00025205,7]
[378068283,1754716262804,-319.058462,0.00025205,7]
[378068286,1754716262819,-472.0,0.00025205,2]
[378068288,1754716262828,-562.43,0.00025205,2]
[378068289,1754716262838,-460.0,0.00025205,2]
[378068291,1754716262847,-151.0,0.00025205,7]
[378068293,1754716262857,-608.58579539,0.00025205,2]
[378068296,1754716262867,-223.993383,0.00025205,7]
[378068297,1754716262876,-223.993383,0.00025205,7]
[378068299,1754716262886,-3741.83461466,0.00025205,7]
[378068301,1754716262896,-151.0,0.00025205,7]
[378068303,1754716262905,-460.0,0.00025205,2]
[378068305,1754716262916,-460.0,0.00025205,2]
[378068307,1754716262925,-585.92,0.00025205,2]
[378068309,1754716262935,-948.97252,0.00025205,7]
[378068311,1754716262945,-948.97252,0.00025205,7]
[378068313,1754716262954,-460.0,0.00025205,2]
[378068315,1754716262964,-460.0,0.00025205,2]
[378068317,1754716262974,-737.74,0.00025205,2]
[378068319,1754716262983,-1186.16,0.00025205,2]
[378068321,1754716262992,-460.0,0.00025205,2]
[378068323,1754716263002,-844.33,0.00025205,2]
[378068325,1754716263011,-5779.76,0.00025205,2]
[378068327,1754716263022,-460.0,0.00025205,2]
[378068329,1754716263034,-1359.95,0.00025205,2]
[378068331,1754716263044,-677.65,0.00025205,2]
[378068333,1754716263054,-460.0,0.00025205,2]
[378068335,1754716263067,-673.74,0.00025205,2]
[378068337,1754716263077,-185.989936,0.00025205,7]
[378068339,1754716263088,-1248.09,0.00025205,2]
[378068341,1754716263099,-2614.39,0.00025205,2]
[378068343,1754716263110,-1565.54,0.00025205,2]
[378068345,1754716263123,-805.41,0.00025205,2]
[378068347,1754716263133,-720.99,0.00025205,2]
[378068349,1754716263143,-151.0,0.00025205,7]
[378068351,1754716263153,-151.0,0.00025205,7]
[378068353,1754716263163,-460.0,0.00025205,2]
[378068355,1754716263173,-151.0,0.00025205,7]
[378068357,1754716263183,-2540.53,0.00025205,2]
[378068359,1754716263193,-460.0,0.00025205,2]
[378068361,1754716263204,-2680.87,0.00025205,2]
[378068363,1754716263214,-1055.29,0.00025205,2]
[378068365,1754716263224,-626.96,0.00025205,2]
[378068367,1754716263235,-831.45,0.00025205,2]
[378068369,1754716263244,-531.14,0.00025205,2]
[378068371,1754716263254,-1352.54,0.00025205,2]
[378068373,1754716263264,-460.0,0.00025205,2]
[378068375,1754716263274,-616.96,0.00025205,2]
[378068377,1754716263283,-484.51,0.00025205,2]
[378068379,1754716263293,-460.0,0.00025205,2]
[378068381,1754716263303,-878.7,0.00025205,2]
[378068383,1754716263315,-460.0,0.00025205,2]
[378068385,1754716263325,-588.03,0.00025205,2]
[378068387,1754716263335,-2205.74,0.00025205,2]
[378068389,1754716263345,-460.0,0.00025205,2]
[378068391,1754716263355,-627.1,0.00025205,2]
[378068393,1754716263366,-211.383814,0.00025205,7]
[378068395,1754716263376,-812.53,0.00025205,2]
[378068397,1754716263386,-211.383814,0.00025205,7]
[378068399,1754716263396,-502.96,0.00025205,2]
[378068401,1754716263405,-281.55971162,0.00025205,2]
[378068403,1754716263415,-1473.86,0.00025205,2]
[378068405,1754716263424,-1466.73,0.00025205,2]
[378068407,1754716263435,-584.11,0.00025205,2]
[378068409,1754716263444,-460.0,0.00025205,2]
[378068411,1754716263454,-734.31,0.00025205,2]
[378068413,1754716263464,-460.0,0.00025205,2]
[378068415,1754716263475,-460.0,0.00025205,2]
[378068417,1754716263490,-323.985552,0.00025205,7]
[378068419,1754716263510,-323.985552,0.00025205,7]
[378068421,1754716263531,-1086.66,0.00025205,2]
[378068423,1754716263543,-1230.88,0.00025205,2]
[378068425,1754716263553,-213.3144082,0.00025205,2]
[378068427,1754716263565,-1364.78,0.00025205,2]
[378068429,1754716263576,-460.0,0.00025205,2]
[378068431,1754716263586,-740.11,0.00025205,2]
[378068433,1754716263596,-1560.26,0.00025205,2]
[378068435,1754716263606,-460.0,0.00025205,2]
[378068437,1754716263616,-1863.28,0.00025205,2]
[378068439,1754716263625,-560.11,0.00025205,2]
[378068441,1754716263634,-619.47,0.00025205,2]
[378068443,1754716263644,-3886.89,0.00025205,2]
[378068445,1754716263653,-972.03,0.00025205,2]
[378068447,1754716263663,-460.0,0.00025205,2]
[378068449,1754716263672,-461.6,0.00025205,2]
[378068451,1754716263681,-443.0,0.00025206,2]
[378068453,1754716263692,-505.62839087,0.00025212,2]
[378068454,1754716263702,-3000.0,0.00025212,2]
[378068456,1754716263711,-3000.0,0.00025212,2]
[378068459,1754716263720,-560.0,0.00025231,2]
[378068460,1754716263730,-15000.0,0.000253,7]
[378068462,1754716263740,-1200.0,0.00025321,2]
[378068465,1754716263750,-300.0,0.00025321,2]
[378068467,1754716263760,-179.82017982,0.00025335,2]
[378068468,1754716263769,-168.0,0.00025347,2]
[378068470,1754716263779,-1000.0,0.00025421,2]
[378068493,1754716263995,-1022.69273619,0.00025421,2]
[378068495,1754716264006,-1000.0,0.00025421,2]
[378068497,1754716264016,-1000.0,0.00025421,2]
[378068499,1754716264026,-900.0,0.00025469,3]
[378068501,1754716264036,-16324.37472944,0.0002547,2]
[378068503,1754716264047,-150.0,0.00025473,2]
[378068505,1754716264056,-150.0,0.00025473,2]
[378068507,1754716264068,-1837.27,0.00025478,2]
[378068509,1754716264078,-796.65,0.00025478,2]
[378068511,1754716264088,-2104.15,0.00025478,2]
[378068513,1754716264098,-3687.5,0.00025479,2]
[378068515,1754716264109,-460.0,0.00025479,2]
[378068517,1754716264120,-579.98,0.00025479,2]
[378068519,1754716264132,-460.0,0.00025479,2]
[378068521,1754716264142,-472.0,0.00025479,2]
[378068523,1754716264153,-562.43,0.00025479,2]
[378068525,1754716264162,-460.0,0.00025479,2]
[378068527,1754716264173,-582.0,0.00025479,2]
[378068529,1754716264184,-375.69000028,0.00025479,2]
[378068531,1754716264193,-585.92,0.00025479,2]
[378068533,1754716264204,-460.0,0.00025479,2]
[378068535,1754716264215,-241.2392453,0.00025479,2]
[378068537,1754716264225,-737.74,0.00025479,2]
[378068539,1754716264235,-1186.16,0.00025479,2]
[378068541,1754716264245,-460.0,0.00025479,2]
[378068543,1754716264254,-844.33,0.00025479,2]
[378068545,1754716264264,-5779.76,0.00025479,2]
[378068546,1754716264275,-460.0,0.00025479,2]
[378068548,1754716264284,-1359.95,0.00025479,2]
[378068550,1754716264294,-677.65,0.00025479,2]
[378068552,1754716264303,-673.74,0.00025479,2]
[378068554,1754716264314,-460.0,0.00025479,2]
[378068556,1754716264324,-1248.09,0.00025479,2]
[378068558,1754716264334,-2614.39,0.00025479,2]
[378068560,1754716264344,-1565.54,0.00025479,2]
[378068563,1754716264358,-805.41,0.00025479,2]
[378068565,1754716264370,-720.99,0.00025479,2]
[378068567,1754716264379,-460.0,0.00025479,2]
[378068569,1754716264389,-2540.53,0.00025479,2]
[378068571,1754716264399,-460.0,0.00025479,2]
[378068573,1754716264408,-2680.87,0.00025479,2]
[378068575,1754716264418,-1055.29,0.00025479,2]
[378068577,1754716264428,-626.96,0.00025479,2]
[378068579,1754716264437,-831.45,0.00025479,2]
[378068581,1754716264447,-531.14,0.00025479,2]
[378068583,1754716264457,-1352.54,0.00025479,2]
[378068585,1754716264467,-460.0,0.00025479,2]
[378068587,1754716264476,-616.96,0.00025479,2]
[378068589,1754716264486,-484.51,0.00025479,2]
[378068591,1754716264495,-460.0,0.00025479,2]
[378068592,1754716264505,-878.7,0.00025479,2]
[378068595,1754716264514,-460.0,0.00025479,2]
[378068596,1754716264524,-588.03,0.00025479,2]
[378068598,1754716264534,-2205.74,0.00025479,2]
[378068609,1754716264621,-460.0,0.00025479,2]
[378068611,1754716264646,-627.1,0.00025479,2]
[378068613,1754716264655,-812.53,0.00025479,2]
[378068615,1754716264665,-502.96,0.00025479,2]
[378068617,1754716264675,-1473.86,0.00025479,2]
[378068619,1754716264685,-1466.73,0.00025479,2]
[378068621,1754716264695,-584.11,0.00025479,2]
[378068623,1754716264704,-460.0,0.00025479,2]
[378068625,1754716264715,-734.31,0.00025479,2]
[378068627,1754716264725,-460.0,0.00025479,2]
[378068629,1754716264735,-460.0,0.00025479,2]
[378068632,1754716264745,-1086.66,0.00025479,2]
[378068634,1754716264755,-1230.88,0.00025479,2]
[378068636,1754716264765,-1364.78,0.00025479,2]
[378068638,1754716264774,-460.0,0.00025479,2]
[378068640,1754716264784,-740.11,0.00025479,2]
[378068642,1754716264793,-1560.26,0.00025479,2]
[378068644,1754716264803,-460.0,0.00025479,2]
[378068646,1754716264815,-1863.28,0.00025479,2]
[378068648,1754716264825,-560.11,0.00025479,2]
[378068650,1754716264834,-619.47,0.00025479,2]
[378068652,1754716264844,-3886.89,0.00025479,2]
[378068654,1754716264853,-972.03,0.00025479,2]
[378068656,1754716264862,-460.0,0.00025479,2]
[378068658,1754716264872,-461.6,0.00025479,2]
[378068660,1754716264882,-443.0,0.0002548,2]
[378068662,1754716264891,-1000.0,0.000255,2]
[378068664,1754716264900,-50000.0,0.000255,7]
[378068666,1754716264909,-151.0,0.000255,7]
[378068668,1754716264919,-151.0,0.000255,7]
[378068669,1754716264928,-151.0,0.000255,7]
[378068671,1754716264938,-151.0,0.000255,7]
[378068673,1754716264947,-206.113152,0.000255,7]
[378068675,1754716264956,-151.0,0.000255,7]
[378068677,1754716264966,-319.058462,0.000255,7]
[378068679,1754716264975,-319.058462,0.000255,7]
[378068682,1754716264984,-151.0,0.000255,7]
[378068684,1754716264994,-223.993383,0.000255,7]
[378068685,1754716265003,-223.993383,0.000255,7]
[378068688,1754716265013,-151.0,0.000255,7]
[378068689,1754716265023,-948.97252,0.000255,7]
[378068691,1754716265033,-948.97252,0.000255,7]
[378068692,1754716265050,-151.0,0.000255,7]
[378068693,1754716265066,-283.698114,0.000255,7]
[378068694,1754716265075,-151.0,0.000255,7]
[378068696,1754716265085,-211.383814,0.000255,7]
[378068698,1754716265094,-211.383814,0.000255,7]
[378068700,1754716265104,-323.985552,0.000255,7]
[378068702,1754716265114,-323.985552,0.000255,7]
[378068704,1754716265124,-168.0,0.00025536,2]
[378068706,1754716265133,-779.97,0.00025636,7]
[378068708,1754716265143,-168.0,0.00025657,2]
[378068710,1754716265152,-1837.27,0.00025752,2]
[378068711,1754716265163,-796.65,0.00025752,2]
[378068714,1754716265172,-2104.15,0.00025752,2]
[378068716,1754716265182,-3687.5,0.00025753,2]
[378068717,1754716265192,-460.0,0.00025753,2]
[378068719,1754716265205,-579.98,0.00025753,2]
[378068722,1754716265215,-460.0,0.00025753,2]
[378068724,1754716265224,-472.0,0.00025753,2]
[378068725,1754716265234,-562.43,0.00025753,2]
[378068727,1754716265243,-460.0,0.00025753,2]
[378068729,1754716265253,-585.92,0.00025753,2]
[378068732,1754716265262,-460.0,0.00025753,2]
[378068733,1754716265272,-737.74,0.00025753,2]
[378068735,1754716265281,-1186.16,0.00025753,2]
[378068737,1754716265291,-460.0,0.00025753,2]
[378068740,1754716265301,-844.33,0.00025753,2]
[378068742,1754716265312,-5779.76,0.00025753,2]
[378068744,1754716265322,-460.0,0.00025753,2]
[378068746,1754716265331,-1359.95,0.00025753,2]
[378068748,1754716265340,-677.65,0.00025753,2]
[378068750,1754716265350,-673.74,0.00025753,2]
[378068751,1754716265359,-460.0,0.00025753,2]
[378068754,1754716265369,-1248.09,0.00025753,2]
[378068756,1754716265378,-2614.39,0.00025753,2]
[378068758,1754716265387,-1565.54,0.00025753,2]
[378068759,1754716265396,-805.41,0.00025753,2]
[378068762,1754716265406,-720.99,0.00025753,2]
[378068763,1754716265415,-460.0,0.00025753,2]
[378068766,1754716265425,-2540.53,0.00025753,2]
[378068767,1754716265435,-460.0,0.00025753,2]
[378068770,1754716265445,-2680.87,0.00025753,2]
[378068772,1754716265456,-626.96,0.00025753,2]
[378068774,1754716265465,-1055.29,0.00025753,2]
[378068776,1754716265475,-831.45,0.00025753,2]
[378068778,1754716265484,-531.14,0.00025753,2]
[378068779,1754716265494,-1352.54,0.00025753,2]
[378068781,1754716265504,-460.0,0.00025753,2]